fUSD/lending_fUSD_20260121
["ID","MTS","AMOUNT","RATE_DAILY","PERIOD"]
[402947840,1769008760814,-300.0,0.00016392,2]
[402947841,1769008760837,-16.81529067,0.00016393,2]
[402947842,1769008760860,-9.16013856,0.00016393,2]
[402947843,1769008763738,-229.75608683,0.00016393,2]
[402947844,1769008767773,-261.08377461,0.00016393,2]
[402947845,1769008767800,-36.94939369,0.00016393,2]
[402947846,1769008769831,-203.83632586,0.00016393,2]
[402947847,1769008772707,-200.57604426,0.00016393,2]
[402947848,1769008773755,1571.30166571,0.00016314,2]
[402947849,1769008774840,-58.63823619,0.00016393,2]
[402947850,1769008774864,-170.92962283,0.00016393,2]
[402947851,1769008777373,-329.07037717,0.00016393,2]
[402947852,1769008777403,-94.87260201,0.00016393,2]
[402947853,1769008780897,-210.61710261,0.00016393,2]
[402947854,1769008784720,-82.76066624,0.00016393,2]
[402947855,1769008784741,-430.95548034,0.00016393,2]
[402947856,1769008787319,-69.04451966,0.00016393,2]
[402947857,1769008787343,-200.0,0.00016393,2]
[402947858,1769008787364,-86.35814859,0.00016396,2]
[402947859,1769008789040,-213.64185141,0.00016396,2]
[402947860,1769008789062,-139.72974331,0.00016396,2]
[402947861,1769008792128,-224.75150848,0.00016393,2]
[402947862,1769008796261,-171.8768968,0.00016393,2]
[402947863,1769008797595,-340.09258437,0.00016393,2]
[402947864,1769008799918,2500.0,0.00016302,2]
[402947865,1769008802905,-245.16221657,0.00016392,2]
[402947866,1769008805988,-156.26,0.00016383,2]
[402947867,1769008806016,-85.16986429,0.00016383,2]
[402947868,1769008806194,7388.95,0.00016229,2]
[402947869,1769008806431,7388.95,0.00016272,2]
[402947870,1769008806965,7388.95,0.00016314,2]
[402947871,1769008807331,-236.08913909,0.00016357,2]
[402947872,1769008808439,-173.48189864,0.00016357,2]
[402947873,1769008810463,-363.40661285,0.00016357,2]
[402947874,1769008813368,-151.63403555,0.00016357,2]
[402947875,1769008814788,-200.0,0.00016357,2]
[402947876,1769008817277,-181.96285593,0.00016357,2]
[402947877,1769008820729,-240.0,0.00016357,2]
[402947878,1769008827097,-269.85609689,0.00016357,2]
[402947879,1769008829851,-204.37705697,0.00016357,2]
[402947880,1769008837789,177.78377636,0.00016283,2]
[402947881,1769008840323,500.0,0.00015562,2]
[402947882,1769008843287,6172.6606,0.00016302,2]
[402947883,1769008849727,236.9366,0.00016302,2]
[402947885,1769008865912,-160.57017195,0.00016357,2]
[402947886,1769008869480,-500.0,0.00016357,2]
[402947887,1769008870588,-259.65386687,0.00016357,2]
[402947888,1769008873459,-278.91626884,0.00016357,2]
[402947889,1769008877300,-410.86237777,0.00016357,2]
[402947890,1769008880439,-201.64389988,0.00016357,2]
[402947891,1769008882569,-326.03769801,0.00016357,2]
[402947892,1769008887492,-220.07851726,0.00016357,2]
[402947893,1769008889196,-259.45954623,0.00016357,2]
[402947894,1769008891690,-246.29664146,0.00016357,2]
[402947895,1769008892730,3386.025,0.00016065,2]
[402947896,1769008892801,407.627,0.00016065,2]
[402947897,1769008897566,-199.97653354,0.00016357,2]
[402947898,1769008901037,-335.62674434,0.00016357,2]
[402947899,1769008916726,3553.211,0.00016302,2]
[402947901,1769008932768,3567.14,0.00015549,2]
[402947902,1769008943376,-299.35701369,0.00016357,2]
[402947903,1769008943805,89163.9323,0.00016302,2]
[402947904,1769008949890,2500.0,0.00016302,2]
[402947905,1769008962798,3401.64,0.00015526,2]
[402947906,1769008968120,1154.508209,0.00016275,2]
[402947907,1769008972474,731.0,0.000226,120]
[402947908,1769008986414,-248.61363329,0.00016357,2]
[402947909,1769008989165,-205.73271156,0.00016357,2]
[402947910,1769009059522,200.0,0.00015507,2]
[402947911,1769009070943,1374.88895747,0.00016296,2]
[402947912,1769009079009,2500.0,0.00016302,2]
[402947913,1769009095890,20092.69049949,0.00016296,2]
[402947914,1769009111556,1526.73,0.00015489,2]
[402947915,1769009116743,154.87616789,0.000163,2]
[402947916,1769009126813,2472.72,0.00015546,2]
[402947917,1769009136285,5272.46458787,0.0001,2]
[402947918,1769009143095,16171.02784897,0.000163,2]
[402947919,1769009153981,138509.52765059,0.0001599,2]
[402947920,1769009161573,16708.44078853,8e-05,2]
[402947921,1769009165638,4990.6449949,0.00011,2]
[402947922,1769009165826,-171.64373162,0.00016357,2]
[402947923,1769009174805,30535.1,0.00015508,2]
[402947924,1769009180889,-187.80666021,0.00016357,2]
[402947926,1769009214956,134048.82174005,0.000162,5]
[402947927,1769009215082,1783.0039,0.00016293,2]
[402947928,1769009226782,6209.1915295,0.00015,2]
[402947929,1769009233603,2500.0,0.00016293,2]
[402947935,1769009235731,1523.80641616,0.0001305,2]
[402947936,1769009248682,291.242939,0.00016,2]
[402947937,1769009252240,3422.03,0.00015466,2]
[402947938,1769009286390,3728.97322002,0.0001439,2]
[402947939,1769009289593,1000.0,0.000135,2]
[402947940,1769009289673,307.49764327,0.000125,2]
[402947941,1769009299696,10560.9878295,0.00015,2]
[402947942,1769009310585,268.30372918,0.000107,2]
[402947943,1769009311630,507.84908268,0.000154,2]
[402947944,1769009314464,193.10964488,0.00015807,2]
[402947945,1769009316067,-189.22159731,0.00016357,2]
[402947946,1769009316651,-666.64469025,0.00016357,2]
[402947947,1769009316680,-652.63568286,0.00016362,2]
[402947948,1769009316709,-250.0,0.00016367,2]
[402947949,1769009316967,-300.0,0.00016367,2]
[402947950,1769009316996,-1144.90104016,0.00016367,2]
[402947951,1769009317025,-881.69071656,0.00016377,2]
[402947952,1769009317185,31171.02987721,0.00016,4]
[402947953,1769009317285,-2208.26574034,0.00016377,2]
[402947954,1769009317604,12036.53359334,0.0001,2]
[402947955,1769009318540,-240.0,0.0001638,2]
[402947956,1769009318567,-60.0,0.00016381,2]
[402947957,1769009319305,-219.0,0.00016381,2]
[402947958,1769009319337,-1200.0,0.00016381,2]
[402947959,1769009319369,-1200.0,0.00016381,2]
[402947960,1769009319402,-550.0,0.00016382,2]
[402947961,1769009319514,-3662.01,0.00016383,2]
[402947962,1769009334124,1000.0,0.00015517,2]
[402947963,1769009334650,2840.42962747,0.00016302,2]
[402947964,1769009343521,443704.79958296,0.00016283,2]
[402947965,1769009343548,111195.0,0.00016283,2]
[402947966,1769009343575,111195.0,0.00016283,2]
[402947967,1769009343602,107747.057,0.00016283,2]
[402947968,1769009343633,112134.8029086,0.00016283,2]
[402947969,1769009343658,112252.943,0.00016283,2]
[402947970,1769009343890,1500.0,0.00015514,2]
[402947971,1769009347809,4107.580673,7.945e-05,2]
[402947972,1769009368121,-783.51283785,0.00016283,2]
[402947973,1769009398489,5587.419327,0.00015489,2]
[402947974,1769009398517,2380.250673,0.00015489,2]
[402947977,1769009409624,3198.98,0.00015613,2]
[402947979,1769009421171,-173.75642742,0.00016283,2]
[402947980,1769009423149,-207.16504362,0.00016283,2]
[402947981,1769009424957,-322.31674702,0.00016283,2]
[402947982,1769009428055,-208.74440286,0.00016283,2]
[402948009,1769009432023,-74.90204967,0.00016283,2]
[402948010,1769009432035,-2500.0,0.00016293,2]
[402948011,1769009432045,-1203.02783776,0.000163,2]
[402948012,1769009432055,-385.37690797,0.00016338,2]
[402948013,1769009432064,-1200.0,0.00016382,2]
[402948014,1769009432074,-300.0,0.00016382,2]
[402948015,1769009432083,-85700.73598858,0.00016383,2]
[402948016,1769009432093,-1047.06319096,0.00016392,5]
[402948017,1769009432102,-246.0,0.00016392,2]
[402948018,1769009432111,-500.0,0.00016392,2]
[402948019,1769009432121,-365.53975245,0.00016392,2]
[402948020,1769009432130,-500.0,0.00016392,2]
[402948021,1769009432139,-500.0,0.00016392,2]
[402948022,1769009432149,-500.0,0.00016392,2]
[402948023,1769009432158,-500.0,0.00016392,2]
[402948024,1769009432168,-500.0,0.00016392,2]
[402948025,1769009432178,-500.0,0.00016392,2]
[402948026,1769009432188,-500.0,0.00016392,2]
[402948027,1769009432197,-500.0,0.00016392,2]
[402948028,1769009432206,-500.0,0.00016392,2]
[402948029,1769009432216,-500.0,0.00016392,2]
[402948030,1769009432225,-500.0,0.00016392,2]
[402948031,1769009432234,-500.0,0.00016392,2]
[402948032,1769009432244,-500.0,0.00016392,2]
[402948033,1769009432253,-500.0,0.00016392,2]
[402948034,1769009432263,-500.0,0.00016392,2]
[402948035,1769009432272,-500.0,0.00016392,2]
[402948036,1769009432283,-500.0,0.00016392,2]
[402948037,1769009432292,-500.0,0.00016392,2]
[402948038,1769009432302,-500.0,0.00016392,2]
[402948039,1769009432311,-500.0,0.00016392,2]
[402948040,1769009432321,-500.0,0.00016392,2]
[402948041,1769009432331,-500.0,0.00016392,2]
[402948042,1769009432340,-500.0,0.00016392,2]
[402948043,1769009432350,-500.0,0.00016392,2]
[402948044,1769009432359,-500.0,0.00016392,2]
[402948045,1769009432368,-500.0,0.00016392,2]
[402948046,1769009432378,-500.0,0.00016392,2]
[402948047,1769009432387,-500.0,0.00016392,2]
[402948048,1769009432396,-500.0,0.00016392,2]
[402948049,1769009432405,-500.0,0.00016392,2]
[402948050,1769009432414,-500.0,0.00016392,2]
[402948051,1769009432424,-500.0,0.00016392,2]
[402948052,1769009432434,-500.0,0.00016392,2]
[402948053,1769009432443,-500.0,0.00016392,2]
[402948054,1769009432452,-500.0,0.00016392,2]
[402948055,1769009432462,-500.0,0.00016392,2]
[402948056,1769009432472,-500.0,0.00016392,2]
[402948057,1769009432481,-500.0,0.00016392,2]
[402948058,1769009432490,-500.0,0.00016392,2]
[402948059,1769009432500,-500.0,0.00016392,2]
[402948060,1769009432509,-500.0,0.00016392,2]
[402948061,1769009432519,-500.0,0.00016392,2]
[402948062,1769009432529,-500.0,0.00016392,2]
[402948063,1769009432539,-500.0,0.00016392,2]
[402948064,1769009432549,-500.0,0.00016392,2]
[402948065,1769009432559,-500.0,0.00016392,2]
[402948066,1769009432572,-500.0,0.00016392,2]
[402948067,1769009432582,-500.0,0.00016392,2]
[402948068,1769009432592,-500.0,0.00016392,2]
[402948069,1769009432601,-500.0,0.00016392,2]
[402948070,1769009432612,-286.89687649,0.00016392,2]
[402948071,1769009432621,-500.0,0.00016392,2]
[402948072,1769009432631,-500.0,0.00016392,2]
[402948073,1769009432642,-500.0,0.00016392,2]
[402948074,1769009432651,-500.0,0.00016392,2]
[402948075,1769009432662,-500.0,0.00016392,2]
[402948076,1769009432671,-500.0,0.00016392,2]
[402948077,1769009432681,-600.0,0.00016392,2]
[402948078,1769009432690,-500.0,0.00016392,2]
[402948079,1769009432699,-500.0,0.00016392,2]
[402948080,1769009432709,-500.0,0.00016392,2]
[402948081,1769009432718,-500.0,0.00016392,2]
[402948082,1769009432728,-500.0,0.00016392,2]
[402948083,1769009432738,-500.0,0.00016392,2]
[402948084,1769009432747,-390.52657701,0.00016392,2]
[402948085,1769009432756,-500.0,0.00016392,2]
[402948086,1769009432766,-208.46022007,0.00016392,2]
[402948087,1769009432775,-500.0,0.00016392,2]
[402948088,1769009432785,-14505.31,0.00016393,2]
[402948089,1769009432794,-210.53435129,0.00016393,2]
[402948090,1769009432804,-151.0,0.00016393,2]
[402948091,1769009432814,-151.0,0.00016393,2]
[402948092,1769009432823,-151.0,0.00016393,2]
[402948093,1769009432833,-151.0,0.00016393,2]
[402948094,1769009432842,-500.0,0.00016393,2]
[402948095,1769009432853,-245.9830133,0.00016393,2]
[402948096,1769009432862,-240.05478706,0.00016393,2]
[402948097,1769009432873,-530550.69173615,0.00016393,2]
[402948098,1769009432882,-7388.95,0.000164,2]
[402948099,1769009432892,-242.9,0.000164,2]
[402948100,1769009432901,-1205.77,0.00016401,2]
[402948101,1769009432911,-500.0,0.00016402,2]
[402948102,1769009432921,-500.0,0.00016402,2]
[402948103,1769009432930,-500.0,0.00016402,2]
[402948104,1769009432939,-500.0,0.00016402,2]
[402948105,1769009432949,-500.0,0.00016402,2]
[402948106,1769009432958,-500.0,0.00016402,2]
[402948107,1769009432967,-500.0,0.00016402,2]
[402948108,1769009432976,-500.0,0.00016402,2]
[402948109,1769009432986,-500.0,0.00016402,2]
[402948110,1769009432995,-192.65453673,0.00016402,2]
[402948111,1769009433005,-500.0,0.00016402,2]
[402948112,1769009433015,-500.0,0.00016402,2]
[402948113,1769009433025,-500.0,0.00016402,2]
[402948114,1769009433038,-500.0,0.00016402,2]
[402948115,1769009433048,-500.0,0.00016402,2]
[402948116,1769009433058,-500.0,0.00016402,2]
[402948117,1769009433068,-500.0,0.00016402,2]
[402948118,1769009433078,-540.84751625,0.00016402,2]
[402948119,1769009433088,-500.0,0.00016402,2]
[402948120,1769009433097,-500.0,0.00016402,2]
[402948121,1769009433108,-500.0,0.00016402,2]
[402948122,1769009433117,-500.0,0.00016402,2]
[402948123,1769009433128,-500.0,0.00016402,2]
[402948124,1769009433137,-500.0,0.00016402,2]
[402948125,1769009433146,-500.0,0.00016402,2]
[402948126,1769009433156,-500.0,0.00016402,2]
[402948127,1769009433166,-341.67884985,0.00016402,2]
[402948128,1769009433176,-500.0,0.00016402,2]
[402948129,1769009433185,-500.0,0.00016402,2]
[402948130,1769009433195,-500.0,0.00016402,2]
[402948131,1769009433204,-500.0,0.00016402,2]
[402948132,1769009433213,-327.49083589,0.00016402,2]
[402948133,1769009433223,-500.0,0.00016402,2]
[402948134,1769009433232,-500.0,0.00016402,2]
[402948135,1769009433241,-500.0,0.00016402,2]
[402948136,1769009433250,-500.0,0.00016438,2]
[402948137,1769009433260,-160.18852516,0.00016438,2]
[402948138,1769009433270,-500.0,0.00016438,2]
[402948139,1769009433281,-500.0,0.00016438,2]
[402948140,1769009433291,-500.0,0.00016438,2]
[402948141,1769009433301,-500.0,0.00016438,2]
[402948142,1769009433311,-500.0,0.00016438,2]
[402948143,1769009433321,-500.0,0.00016438,2]
[402948144,1769009433332,-500.0,0.00016438,2]
[402948145,1769009433342,-500.0,0.00016438,2]
[402948146,1769009433351,-226.86,0.00016438,2]
[402948147,1769009433360,-151.0,0.00016438,2]
[402948148,1769009433370,-7388.95,0.00016442,2]
[402948149,1769009433379,-1022.51,0.00016444,2]
[402948150,1769009433389,-16171.02784895,0.00016479,2]
[402948151,1769009433399,-7388.95,0.00016485,2]
[402948152,1769009433408,-8743.53821594,0.000165,2]
[402948153,1769009433417,-150.00290567,0.0001652,2]
[402948154,1769009433426,-7388.95,0.00016528,2]
[402948155,1769009433436,-1203.02783775,0.00016529,2]
[402948156,1769009433445,-500.0,0.00016532,2]
[402948157,1769009433454,-500.0,0.00016532,2]
[402948158,1769009433464,-500.0,0.00016532,2]
[402948159,1769009433473,-500.0,0.00016532,2]
[402948160,1769009433483,-500.0,0.00016532,2]
[402948161,1769009433493,-500.0,0.00016532,2]
[402948162,1769009433503,-500.0,0.00016532,2]
[402948163,1769009433513,-500.0,0.00016532,2]
[402948164,1769009433523,-500.0,0.00016532,2]
[402948165,1769009433535,-500.0,0.00016532,2]
[402948166,1769009433545,-385.18354163,0.00016532,2]
[402948167,1769009433555,-500.0,0.00016532,2]
[402948168,1769009433565,-500.0,0.00016532,2]
[402948169,1769009433576,-1992.6875,0.00016532,2]
[402948170,1769009433589,-33234.7286,0.00016532,2]
[402948171,1769009433598,-1000.0,0.00016532,2]
[402948172,1769009433608,-7388.95,0.00016571,2]
[402948173,1769009433618,-1233.0,0.00016585,2]
[402948174,1769009433629,-385.37690796,0.00016598,2]
[402948175,1769009433638,-430.0,0.000166,2]
[402948176,1769009433648,-7388.95,0.00016613,2]
[402948177,1769009433658,-597.0,0.00016614,2]
[402948178,1769009433668,-486.0,0.00016618,2]
[402948179,1769009433678,-1194.0,0.0001663,2]
[402948180,1769009433687,-273.0,0.00016633,2]
[402948181,1769009433696,-809.0,0.00016647,2]
[402948182,1769009433706,-811.0,0.00016651,2]
[402948183,1769009433715,-7388.95,0.00016656,2]
[402948184,1769009433725,-16171.02784895,0.00016658,2]
[402948185,1769009433735,-904.0,0.00016663,2]
[402948186,1769009433744,-461.0,0.00016666,2]
[402948187,1769009433753,-1205.77,0.00016675,2]
[402948188,1769009433763,-1998.0,0.0001668,2]
[402948189,1769009433772,-151.0,0.00016682,2]
[402948190,1769009433783,-151.0,0.00016683,2]
[402948191,1769009433793,-151.0,0.00016683,2]
[402948192,1769009433802,-151.0,0.00016684,2]
[402948193,1769009433812,-917.0,0.00016697,2]
[402948194,1769009433821,-7388.95,0.00016699,2]
[402948195,1769009433830,-392.0,0.000167,2]
[402948196,1769009433839,-1355.0,0.00016714,2]
[402948197,1769009433848,-395.0,0.0001673,2]
[402948198,1769009433857,-279.0,0.00016733,2]
[402948199,1769009433866,-7388.95,0.00016741,2]
[402948200,1769009433875,-1203.02783775,0.00016757,2]
[402948201,1769009433885,-658.0,0.00016763,2]
[402948202,1769009433894,-429.0,0.00016766,2]
[402948203,1769009433903,-7388.95,0.00016784,2]
[402948204,1769009433912,-1754.0,0.00016796,2]
[402948205,1769009433921,-212.0,0.00016799,2]
[402948206,1769009433930,-7388.95,0.00016827,2]
[402948207,1769009433940,-476.0,0.00016832,2]
[402948208,1769009433949,-16171.02784895,0.00016837,2]
[402948209,1769009433958,-385.37690796,0.00016859,2]
[402948210,1769009433967,-278.0,0.00016865,2]
[402948211,1769009433977,-7388.95,0.0001687,2]
[402948212,1769009433986,-527.68903203,0.00016892,2]
[402948213,1769009433996,-3613.73488161,0.00016897,2]
[402948214,1769009434009,-1032.57945364,0.00016897,2]
[402948215,1769009434021,-3954.798,0.00016897,2]
[402948216,1769009434033,-482.13,0.00016897,2]
[402948217,1769009434094,-538.39856087,0.00016897,2]
[402948218,1769009434105,-540.54142778,0.00016897,2]
[402948219,1769009434117,-1309.68764366,0.00016897,2]
[402948220,1769009434128,-787.27893922,0.00016897,2]
[402948221,1769009434139,-645.35016041,0.00016897,2]
[402948222,1769009434196,-827.08473548,0.00016897,2]
[402948223,1769009434207,-448.54201431,0.00016897,2]
[402948224,1769009434218,-2304.29810412,0.00016897,2]
[402948225,1769009434228,-85.6511811,0.00016912,2]
[402948226,1769009437712,-7303.2988189,0.00016912,2]
[402948227,1769009437722,-500.0,0.00016941,2]
[402948228,1769009437731,-1205.77,0.00016949,2]
[402948229,1769009437741,-5249.9311801,0.00016955,2]
[402948230,1769009437752,-2139.0188199,0.00016955,2]
[402948231,1769009437762,-1203.02783775,0.00016986,2]
[402948232,1769009437771,-7388.95,0.00016998,2]
[402948233,1769009437782,-250.0,0.00017,2]
[402948234,1769009437792,-16171.02784895,0.00017016,2]
[402948235,1769009437801,-7388.95,0.0001704,2]
[402948236,1769009437811,-385.37690796,0.00017119,2]
[402948237,1769009437821,-279.18333591,0.00017173,2]
[402948238,1769009437830,-500.94467747,0.00017173,2]
[402948239,1769009437839,-167.87587796,0.00017173,2]
[402948240,1769009437849,-500.0,0.00017173,2]
[402948241,1769009437859,-500.0,0.00017173,2]
[402948242,1769009437869,-500.0,0.00017173,2]
[402948243,1769009437879,-500.0,0.00017173,2]
[402948244,1769009437888,-500.0,0.00017173,2]
[402948245,1769009437897,-500.53278225,0.00017173,2]
[402948246,1769009437907,-163.65383635,0.00017173,2]
[402948247,1769009437917,-275.5219394,0.00017173,2]
[402948248,1769009437926,-500.0,0.00017173,2]
[402948249,1769009437936,-500.0,0.00017173,2]
[402948250,1769009437946,-500.0,0.00017173,2]
[402948251,1769009437955,-500.0,0.00017173,2]
[402948253,1769009437966,-500.0,0.00017173,2]
[402948255,1769009437976,-500.0,0.00017173,2]
[402948257,1769009437986,-500.0,0.00017173,2]
[402948259,1769009437996,-500.0,0.00017173,2]
[402948261,1769009438006,-500.0,0.00017173,2]
[402948263,1769009438015,-500.71668526,0.00017173,2]
[402948265,1769009438025,-500.0,0.00017173,2]
[402948267,1769009438036,-500.0,0.00017173,2]
[402948269,1769009438048,-16171.02784895,0.00017194,2]
[402948271,1769009438059,-1203.02783775,0.00017214,2]
[402948273,1769009438069,-1205.77,0.00017223,2]
[402948275,1769009438080,-1022.51,0.00017227,2]
[402948277,1769009438090,-500.79549494,0.00017273,2]
[402948279,1769009438100,-242.00387817,0.00017273,2]
[402948281,1769009438111,-500.0,0.00017273,2]
[402948283,1769009438121,-481.89121141,0.00017273,2]
[402948285,1769009438131,-500.0,0.00017273,2]
[402948287,1769009438142,-500.73381826,0.00017273,2]
[402948289,1769009438153,-586.66357325,0.00017273,2]
[402948291,1769009438163,-500.0,0.00017273,2]
[402948293,1769009438173,-150.0,0.00017367,2]
[402948295,1769009438184,-1510.0,0.00017367,2]
[402948297,1769009438194,-16171.02784895,0.00017373,2]
[402948299,1769009438209,-151.89,0.00017379,2]
[402948301,1769009438220,-385.37690796,0.00017379,2]
[402948303,1769009438231,-1510.0,0.00017398,2]
[402948305,1769009438241,-1526.73,0.00017425,2]
[402948307,1769009438251,-1510.0,0.00017429,2]
[402948309,1769009438261,-1203.02783775,0.00017443,2]
[402948311,1769009438271,-1000.0,0.00017457,2]
[402948313,1769009438280,-1510.0,0.00017458,2]
[402948314,1769009438295,-508.92671197,0.00017489,2]
[402948316,1769009438305,-1205.77,0.00017497,2]
[402948317,1769009438315,-23805.47380936,0.000175,2]
[402948318,1769009438325,-1778.26926384,0.000175,3]
[402948319,1769009438335,-1510.0,0.00017535,2]
[402948320,1769009438345,-16171.02784895,0.00017552,2]
[402948321,1769009438355,-1510.0,0.00017558,2]
[402948322,1769009438365,-1510.0,0.00017625,2]
[402948323,1769009438374,-1510.0,0.0001763,2]
[402948324,1769009438384,-385.37690796,0.0001764,2]
[402948325,1769009438394,-1510.0,0.00017654,2]
[402948326,1769009438404,-1203.02783775,0.00017671,2]
[402948327,1769009438415,-1000.0,0.00017721,2]
[402948328,1769009438425,-512.65188463,0.00017721,2]
[402948329,1769009438436,-1000.0,0.00017721,2]
[402948330,1769009438446,-1000.0,0.00017721,2]
[402948331,1769009438456,-1000.0,0.00017721,2]
[402948332,1769009438466,-1000.0,0.00017721,2]
[402948333,1769009438476,-989.94559639,0.00017721,2]
[402948334,1769009438488,-1000.0,0.00017721,2]
[402948335,1769009438498,-1000.0,0.00017721,2]
[402948336,1769009438508,-1000.0,0.00017721,2]
[402948337,1769009438518,-150.99,0.00017728,2]
[402948338,1769009438528,-150.99,0.00017728,2]
[402948339,1769009438540,-1536.72,0.00017728,2]
[402948340,1769009438550,-9999.99,0.00017728,2]
[402948341,1769009438560,-499.99,0.00017728,2]
[402948342,1769009438575,-1193.97,0.00017728,2]
[402948343,1769009438585,-2777.9,0.00017728,2]
[402948344,1769009438595,-9999.99,0.00017728,2]
[402948345,1769009438607,-9999.99,0.00017728,2]
[402948346,1769009438618,-2538.16,0.00017728,2]
[402948347,1769009438629,-1550.71,0.00017728,2]
[402948348,1769009438639,-999.99,0.00017728,2]
[402948349,1769009438650,-9999.99,0.00017728,2]
[402948350,1769009438661,-16171.02784895,0.00017731,2]
[402948351,1769009438672,-1205.77,0.00017771,2]
[402948352,1769009438682,-150.00290567,0.00017783,2]
[402948353,1769009438692,-1000.0,0.00017821,2]
[402948354,1769009438702,-234.04112718,0.00017829,2]
[402948355,1769009438713,-500.0,0.00017829,2]
[402948356,1769009438723,-500.0,0.00017829,2]
[402948357,1769009438734,-514.94793868,0.00017829,2]
[402948358,1769009438744,-500.0,0.00017829,2]
[402948359,1769009438754,-500.0,0.00017829,2]
[402948360,1769009438764,-1510.0,0.00017833,2]
[402948361,1769009438773,-1510.0,0.00017854,2]
[402948362,1769009438783,-1202.74527863,0.00017873,2]
[402948363,1769009438793,-174.61919141,0.00017883,2]
[402948364,1769009438803,-2000.0,0.00017883,2]
[402948365,1769009438813,-2000.0,0.00017883,2]
[402948366,1769009438823,-250.0,0.00017883,2]
[402948367,1769009438833,-2000.0,0.00017883,2]
[402948368,1769009438844,-250.0,0.00017883,2]
[402948369,1769009438853,-2000.0,0.00017883,2]
[402948370,1769009438864,-250.0,0.00017883,2]
[402948371,1769009438873,-151.0,0.00017883,2]
[402948372,1769009438884,-2000.0,0.00017883,2]
[402948373,1769009438894,-250.0,0.00017883,2]
[402948374,1769009439160,-2000.0,0.00017883,2]
[402948375,1769009439172,-250.0,0.00017883,2]
[402948376,1769009439182,-533.88981491,0.00017883,2]
[402948377,1769009439196,-2000.0,0.00017883,2]
[402948378,1769009439207,-250.0,0.00017883,2]
[402948379,1769009439218,-250.0,0.00017883,2]
[402948380,1769009439229,-2000.0,0.00017883,2]
[402948381,1769009439240,-250.0,0.00017883,2]
[402948382,1769009439251,-2000.0,0.00017883,2]
[402948383,1769009439261,-250.0,0.00017883,2]
[402948384,1769009439272,-250.0,0.00017883,2]
[402948385,1769009439287,-2000.0,0.00017883,2]
[402948386,1769009439297,-250.0,0.00017883,2]
[402948387,1769009439307,-250.0,0.00017883,2]
[402948388,1769009439318,-322.6107,0.00017883,2]
[402948389,1769009439329,-250.0,0.00017883,2]
[402948390,1769009439340,-376.37345362,0.00017883,2]
[402948391,1769009439350,-2000.0,0.00017883,2]
[402948392,1769009439361,-250.0,0.00017883,2]
[402948393,1769009439376,-2000.0,0.00017883,2]
[402948394,1769009439387,-250.0,0.00017883,2]
[402948395,1769009439397,-2000.0,0.00017883,2]
[402948397,1769009439408,-250.0,0.00017883,2]
[402948400,1769009439423,-303.89373247,0.00017883,2]
[402948401,1769009439433,-1000.0,0.00017883,2]
[402948403,1769009439444,-1000.0,0.00017883,2]
[402948405,1769009439453,-1000.0,0.00017883,2]
[402948407,1769009439463,-1000.0,0.00017883,2]
[402948409,1769009439472,-1000.0,0.00017883,2]
[402948410,1769009439482,-1000.0,0.00017883,2]
[402948411,1769009439493,-1000.0,0.00017883,2]
[402948412,1769009439503,-1000.0,0.00017883,2]
[402948413,1769009439514,-250.0,0.00017883,2]
[402948414,1769009439525,-1000.0,0.00017883,2]
[402948415,1769009439539,-1000.0,0.00017883,2]